[Event "Blixt-SM 2021"]
[Site "Elite Hotel Marina Plaza, Kungstorget 6, Helsingborg, Sweden"]
[Date "2021.11.14"]
[Round "12.8"]
[White "Rasti, Arvin"]
[Black "Agovic, Seifo"]
[Result "1-0"]
[TimeControl "3 minutes + 2 seconds per move."]
[WhiteFideId "1741160"]
[BlackFideId "1702360"]
[WhiteElo "2054"]
[BlackElo "1910"]

1. d4 {[%clk 00:03:03]} {[%emt 00:00:01]} Nf6 {[%clk 00:03:03]} {[%emt
00:00:02]} 2. c4 {[%clk 00:03:03]} {[%emt 00:00:02]} c5 {[%clk 00:03:04]} 3. d5
{[%clk 00:03:01]} {[%emt 00:00:04]} e6 {[%clk 00:03:06]} 4. Nc3 {[%clk
00:03:02]} {[%emt 00:00:01]} exd5 {[%clk 00:03:07]} {[%emt 00:00:01]} 5. cxd5
{[%clk 00:03:03]} {[%emt 00:00:01]} d6 {[%clk 00:03:08]} 6. e4 {[%clk
00:03:04]} {[%emt 00:00:02]} g6 {[%clk 00:03:09]} 7. f4 {[%clk 00:03:00]}
{[%emt 00:00:06]} Bg7 {[%clk 00:03:10]} 8. Bb5+ {[%clk 00:03:01]} Nfd7 {[%clk
00:03:12]} 9. a4 {[%clk 00:03:02]} {[%emt 00:00:03]} O-O {[%clk 00:03:12]}
{[%emt 00:00:02]} 10. Nf3 {[%clk 00:03:03]} {[%emt 00:00:01]} Na6 {[%clk
00:03:12]} {[%emt 00:00:01]} 11. O-O {[%clk 00:03:03]} {[%emt 00:00:02]} Nc7
{[%clk 00:03:14]} 12. Bc4 {[%clk 00:02:54]} {[%emt 00:00:10]} Nf6 {[%clk
00:03:14]} {[%emt 00:00:03]} 13. h3 {[%clk 00:02:52]} {[%emt 00:00:04]} Re8
{[%clk 00:03:15]} {[%emt 00:00:02]} 14. Re1 {[%clk 00:02:53]} b6 {[%clk
00:03:15]} {[%emt 00:00:02]} 15. e5 {[%clk 00:02:43]} {[%emt 00:00:12]} Nh5
{[%clk 00:02:50]} {[%emt 00:00:27]} 16. e6 {[%clk 00:02:19]} {[%emt 00:00:25]}
fxe6 {[%clk 00:02:49]} {[%emt 00:00:03]} 17. dxe6 {[%clk 00:02:20]} {[%emt
00:00:01]} Bxe6 {[%clk 00:02:50]} 18. Bxe6+ {[%clk 00:02:15]} {[%emt 00:00:07]}
Rxe6 {[%clk 00:02:50]} {[%emt 00:00:02]} 19. Rxe6 {[%clk 00:02:16]} {[%emt
00:00:02]} Nxe6 {[%clk 00:02:51]} 20. Qd5 {[%clk 00:02:14]} {[%emt 00:00:04]}
Qe8 {[%clk 00:02:42]} {[%emt 00:00:11]} 21. Ng5 {[%clk 00:02:11]} {[%emt
00:00:05]} Bd4+ {[%clk 00:02:12]} {[%emt 00:00:32]} 22. Kh2 {[%clk 00:02:12]}
{[%emt 00:00:02]} Nhg7 {[%clk 00:02:13]} 23. Bd2 {[%clk 00:02:05]} {[%emt
00:00:09]} h6 {[%clk 00:02:11]} {[%emt 00:00:04]} 24. Nxe6 {[%clk 00:02:05]}
{[%emt 00:00:02]} Nxe6 {[%clk 00:02:09]} {[%emt 00:00:04]} 25. Re1 {[%clk
00:02:06]} {[%emt 00:00:02]} Kf7 {[%clk 00:02:10]} 26. Ne4 {[%clk 00:01:59]}
{[%emt 00:00:09]} Kg7 {[%clk 00:01:34]} {[%emt 00:00:38]} 27. Nxd6 {[%clk
00:01:57]} {[%emt 00:00:03]} Qd7 {[%clk 00:01:29]} {[%emt 00:00:07]} 28. Qxe6
{[%clk 00:01:54]} {[%emt 00:00:05]} Qxe6 {[%clk 00:01:30]} 29. Rxe6 {[%clk
00:01:55]} {[%emt 00:00:01]} Bxb2 {[%clk 00:01:29]} {[%emt 00:00:04]} 30. f5
{[%clk 00:01:53]} {[%emt 00:00:04]} gxf5 {[%clk 00:01:29]} {[%emt 00:00:02]} 31.
Nxf5+ {[%clk 00:01:54]} Kf7 {[%clk 00:01:30]} 32. Rxh6 {[%clk 00:01:51]} {[%emt
00:00:05]} Rd8 {[%clk 00:01:28]} {[%emt 00:00:04]} 33. Bf4 {[%clk 00:01:34]}
{[%emt 00:00:19]} Rd5 {[%clk 00:01:25]} {[%emt 00:00:06]} 34. Nd6+ {[%emt
00:00:08]} Kg7 35. Re6 {[%clk 00:01:21]} {[%emt 00:00:08]} Rd4 {[%clk
00:01:23]} {[%emt 00:00:06]} 36. Be5+ {[%clk 00:01:21]} {[%emt 00:00:01]} Kf8
{[%clk 00:01:22]} {[%emt 00:00:03]} 37. Re8# {[%clk 00:01:21]} {[%emt
00:00:03]} 1-0

[Event "Blixt-SM 2021"]
[Site "Elite Hotel Marina Plaza, Kungstorget 6, Helsingborg, Sweden"]
[Date "2021.11.14"]
[Round "2.2"]
[White "Makinen, Janne"]
[Black "Jepson, Christian"]
[Result "0-1"]
[TimeControl "3 minutes + 2 seconds per move."]
[BlackTitle "IM"]
[WhiteFideId "1704036"]
[BlackFideId "1701185"]
[WhiteElo "2004"]
[BlackElo "2412"]

1. d4 {[%clk 00:03:03]} Nf6 {[%clk 00:03:03]} {[%emt 00:00:02]} 2. c4 {[%clk
00:03:04]} e6 {[%clk 00:03:04]} {[%emt 00:00:02]} 3. Nf3 {[%clk 00:03:05]} d5
{[%clk 00:03:05]} 4. Nc3 {[%clk 00:03:06]} {[%emt 00:00:01]} Nbd7 {[%clk
00:03:05]} {[%emt 00:00:02]} 5. c5 {[%clk 00:02:50]} {[%emt 00:00:17]} c6
{[%clk 00:03:04]} {[%emt 00:00:03]} 6. Bf4 {[%clk 00:02:50]} {[%emt 00:00:02]}
b6 {[%clk 00:03:04]} {[%emt 00:00:03]} 7. b4 {[%clk 00:02:49]} {[%emt
00:00:03]} a5 {[%clk 00:03:04]} {[%emt 00:00:02]} 8. a3 {[%clk 00:02:50]} Be7
{[%clk 00:02:49]} {[%emt 00:00:18]} 9. e3 {[%clk 00:02:50]} {[%emt 00:00:02]}
O-O {[%clk 00:02:26]} {[%emt 00:00:25]} 10. Bd3 {[%clk 00:02:51]} Ba6 {[%clk
00:02:22]} {[%emt 00:00:06]} 11. Bxa6 {[%clk 00:02:37]} {[%emt 00:00:16]} Rxa6
{[%clk 00:02:23]} {[%emt 00:00:01]} 12. O-O {[%clk 00:02:25]} {[%emt 00:00:14]}
Qc8 {[%clk 00:02:16]} {[%emt 00:00:09]} 13. Ne5 {[%clk 00:02:09]} {[%emt
00:00:18]} Nxe5 {[%clk 00:02:01]} {[%emt 00:00:17]} 14. Bxe5 {[%clk 00:02:07]}
{[%emt 00:00:03]} Nd7 {[%clk 00:01:56]} {[%emt 00:00:08]} 15. Bg3 {[%clk
00:02:04]} {[%emt 00:00:06]} Qb7 {[%clk 00:01:52]} {[%emt 00:00:06]} 16. Qc2
{[%clk 00:01:40]} {[%emt 00:00:26]} Rfa8 {[%clk 00:01:38]} {[%emt 00:00:16]} 17.
Rab1 {[%clk 00:01:33]} {[%emt 00:00:09]} axb4 {[%clk 00:01:38]} {[%emt
00:00:02]} 18. axb4 {[%clk 00:01:35]} Qc8 {[%clk 00:01:17]} {[%emt 00:00:23]}
19. h3 {[%clk 00:01:23]} {[%emt 00:00:13]} Bf6 {[%clk 00:00:53]} {[%emt
00:00:26]} 20. f4 {[%clk 00:00:59]} {[%emt 00:00:26]} h6 {[%clk 00:00:54]}
{[%emt 00:00:01]} 21. Qb2 {[%clk 00:00:48]} {[%emt 00:00:13]} Ra3 {[%clk
00:00:52]} {[%emt 00:00:04]} 22. Rfc1 {[%clk 00:00:34]} {[%emt 00:00:16]} g6
{[%clk 00:00:43]} {[%emt 00:00:11]} 23. Bf2 {[%clk 00:00:31]} {[%emt 00:00:05]}
b5 {[%clk 00:00:35]} {[%emt 00:00:10]} 24. g4 {[%clk 00:00:24]} {[%emt
00:00:09]} Qd8 {[%clk 00:00:36]} 25. Ra1 {[%clk 00:00:23]} {[%emt 00:00:03]}
Rxa1 {[%clk 00:00:36]} {[%emt 00:00:02]} 26. Rxa1 {[%clk 00:00:24]} Kg7 {[%clk
00:00:35]} {[%emt 00:00:04]} 27. Kg2 {[%clk 00:00:24]} Qb8 {[%clk 00:00:34]}
{[%emt 00:00:06]} 28. Kf3 {[%clk 00:00:24]} Ra7 {[%clk 00:00:35]} {[%emt
00:00:03]} 29. Rxa7 {[%clk 00:00:23]} {[%emt 00:00:03]} Qxa7 30. Qa2 Qxa2
{[%clk 00:00:37]} {[%emt 00:00:01]} 0-1

[Event "Blixt-SM 2021"]
[Site "Elite Hotel Marina Plaza, Kungstorget 6, Helsingborg, Sweden"]
[Date "2021.11.14"]
[Round "3.9"]
[White "Khalat, Havras"]
[Black "Wellevit, Tomas"]
[Result "0-1"]
[TimeControl "3 minutes + 2 seconds per move."]
[WhiteFideId "1725017"]
[BlackFideId "1731963"]
[WhiteElo "1793"]
[BlackElo "2113"]

1. d4 {[%clk 00:03:02]} {[%emt 00:00:02]} d5 {[%clk 00:03:04]} 2. c4 {[%clk
00:03:03]} e5 {[%clk 00:03:05]} 3. dxe5 {[%clk 00:03:01]} {[%emt 00:00:06]} d4
{[%clk 00:03:06]} 4. e3 {[%clk 00:03:00]} {[%emt 00:00:03]} Bb4+ {[%clk
00:03:07]} {[%emt 00:00:01]} 5. Bd2 {[%clk 00:02:06]} {[%emt 00:00:56]} dxe3
{[%clk 00:03:08]} 6. Qa4+ {[%clk 00:01:24]} {[%emt 00:00:43]} Bd7 {[%clk
00:02:26]} {[%emt 00:00:45]} 7. Qxb4 {[%clk 00:01:25]} {[%emt 00:00:02]} exd2+
{[%clk 00:02:25]} {[%emt 00:00:03]} 8. Qxd2 {[%clk 00:01:25]} {[%emt 00:00:02]}
Qe7 {[%clk 00:02:23]} {[%emt 00:00:04]} 9. Nf3 {[%clk 00:01:24]} {[%emt
00:00:02]} Nc6 {[%clk 00:02:24]} {[%emt 00:00:01]} 10. Be2 {[%clk 00:01:19]}
{[%emt 00:00:07]} O-O-O {[%clk 00:02:21]} {[%emt 00:00:05]} 11. O-O {[%clk
00:01:13]} {[%emt 00:00:08]} Nh6 {[%clk 00:02:16]} {[%emt 00:00:07]} 12. Nc3
{[%clk 00:01:11]} {[%emt 00:00:04]} Nxe5 {[%clk 00:02:15]} {[%emt 00:00:03]} 13.
Nxe5 {[%clk 00:01:00]} {[%emt 00:00:12]} Qxe5 {[%clk 00:02:15]} {[%emt
00:00:02]} 14. Rfe1 {[%clk 00:00:52]} {[%emt 00:00:10]} Be6 {[%clk 00:01:32]}
{[%emt 00:00:45]} 15. Qc2 {[%clk 00:00:45]} {[%emt 00:00:10]} Qg5 {[%clk
00:01:28]} {[%emt 00:00:06]} 16. Rad1 {[%clk 00:00:33]} {[%emt 00:00:14]} Nf5
{[%clk 00:01:29]} {[%emt 00:00:02]} 17. Ne4 {[%clk 00:00:27]} {[%emt 00:00:08]}
Qg6 {[%clk 00:01:27]} {[%emt 00:00:04]} 18. Qb3 {[%clk 00:00:15]} {[%emt
00:00:14]} Nd4 {[%clk 00:01:24]} {[%emt 00:00:05]} 19. Qe3 {[%clk 00:00:11]}
{[%emt 00:00:05]} Nc6 {[%clk 00:01:16]} {[%emt 00:00:11]} 20. Ng3 {[%clk
00:00:11]} {[%emt 00:00:02]} h5 {[%clk 00:01:13]} {[%emt 00:00:05]} 21. h4
{[%clk 00:00:10]} {[%emt 00:00:03]} Qf6 {[%clk 00:01:10]} {[%emt 00:00:06]} 22.
Qg5 {[%clk 00:00:10]} {[%emt 00:00:02]} Qxb2 {[%clk 00:01:04]} {[%emt
00:00:07]} 23. Rb1 {[%clk 00:00:10]} {[%emt 00:00:02]} Qa3 {[%clk 00:01:02]}
{[%emt 00:00:04]} 24. Bf3 {[%clk 00:00:11]} Qa4 {[%clk 00:00:53]} {[%emt
00:00:11]} 25. c5 {[%clk 00:00:09]} {[%emt 00:00:04]} f6 {[%clk 00:00:48]}
{[%emt 00:00:07]} 26. Qe3 {[%clk 00:00:06]} {[%emt 00:00:04]} Rhe8 {[%clk
00:00:49]} {[%emt 00:00:02]} 27. Qc3 {[%clk 00:00:06]} {[%emt 00:00:02]} Bg4
{[%clk 00:00:40]} {[%emt 00:00:11]} 28. Bxg4+ {[%clk 00:00:06]} {[%emt
00:00:02]} Qxg4 {[%clk 00:00:40]} {[%emt 00:00:01]} 29. Rxe8 {[%clk 00:00:06]}
{[%emt 00:00:02]} Rxe8 {[%clk 00:00:42]} 30. Qd3 {[%clk 00:00:06]} {[%emt
00:00:03]} Qxh4 {[%clk 00:00:37]} {[%emt 00:00:07]} 31. Rd1 {[%clk 00:00:07]}
Kb8 {[%clk 00:00:22]} {[%emt 00:00:17]} 32. Qd7 {[%clk 00:00:07]} {[%emt
00:00:02]} Rc8 {[%clk 00:00:19]} {[%emt 00:00:04]} 33. Nf5 {[%clk 00:00:07]}
{[%emt 00:00:02]} Qg4 {[%clk 00:00:19]} {[%emt 00:00:03]} 34. Ne7 {[%clk
00:00:06]} {[%emt 00:00:03]} Qxd7 {[%clk 00:00:19]} 35. Rxd7 {[%clk 00:00:07]}
{[%emt 00:00:02]} Nxe7 {[%clk 00:00:19]} {[%emt 00:00:02]} 36. Rxe7 {[%clk
00:00:08]} Rg8 {[%clk 00:00:18]} {[%emt 00:00:03]} 37. f4 {[%clk 00:00:08]}
{[%emt 00:00:02]} a6 {[%clk 00:00:19]} {[%emt 00:00:02]} 38. Kf2 {[%clk
00:00:09]} g5 {[%clk 00:00:19]} {[%emt 00:00:01]} 39. fxg5 {[%clk 00:00:09]}
{[%emt 00:00:02]} fxg5 {[%clk 00:00:20]} 40. Re5 {[%clk 00:00:10]} {[%emt
00:00:01]} Rg6 {[%clk 00:00:21]} 41. Re8+ {[%clk 00:00:11]} {[%emt 00:00:01]}
Ka7 {[%clk 00:00:22]} 42. Re7 {[%clk 00:00:12]} {[%emt 00:00:02]} c6 {[%clk
00:00:21]} {[%emt 00:00:02]} 43. a4 {[%clk 00:00:13]} {[%emt 00:00:01]} a5 44.
Ke3 {[%emt 00:00:02]} Ka6 {[%clk 00:00:20]} {[%emt 00:00:01]} 45. Ke4 {[%clk
00:00:14]} {[%emt 00:00:02]} b6 {[%clk 00:00:21]} 46. cxb6 {[%clk 00:00:14]}
{[%emt 00:00:02]} Kxb6 {[%clk 00:00:23]} 47. Kf5 {[%clk 00:00:15]} {[%emt
00:00:01]} Rg8 {[%clk 00:00:23]} 48. Rh7 {[%clk 00:00:14]} {[%emt 00:00:03]} h4
{[%clk 00:00:24]} 49. Re7 {[%clk 00:00:13]} {[%emt 00:00:03]} Kc5 {[%clk
00:00:25]} {[%emt 00:00:02]} 50. Re5+ {[%clk 00:00:12]} {[%emt 00:00:02]} Kb4
{[%clk 00:00:26]} {[%emt 00:00:01]} 51. Re4+ {[%clk 00:00:13]} Ka3 {[%clk
00:00:26]} {[%emt 00:00:02]} 52. Rc4 {[%clk 00:00:14]} {[%emt 00:00:01]} g4
{[%clk 00:00:23]} {[%emt 00:00:05]} 53. Rxc6 {[%clk 00:00:09]} {[%emt
00:00:07]} h3 {[%clk 00:00:24]} {[%emt 00:00:01]} 54. gxh3 {[%clk 00:00:10]} g3
{[%clk 00:00:25]} 55. Rc1 {[%clk 00:00:10]} {[%emt 00:00:03]} g2 {[%clk
00:00:26]} 56. Rg1 {[%clk 00:00:11]} {[%emt 00:00:01]} Kxa4 {[%clk 00:00:28]}
57. h4 {[%clk 00:00:12]} Kb3 {[%clk 00:00:29]} {[%emt 00:00:02]} 58. h5 {[%clk
00:00:12]} {[%emt 00:00:01]} a4 {[%clk 00:00:30]} 59. h6 {[%clk 00:00:13]} a3
{[%clk 00:00:31]} 60. h7 {[%clk 00:00:14]} {[%emt 00:00:01]} Rh8 {[%clk
00:00:33]} 61. Rxg2 {[%clk 00:00:14]} {[%emt 00:00:02]} Rxh7 62. Rg3+ {[%emt
00:00:02]} Ka4 {[%clk 00:00:31]} {[%emt 00:00:01]} 63. Rg4+ {[%clk 00:00:14]}
{[%emt 00:00:03]} Ka5 {[%clk 00:00:32]} {[%emt 00:00:02]} 64. Rg2 {[%clk
00:00:14]} {[%emt 00:00:01]} Rb7 {[%clk 00:00:25]} {[%emt 00:00:08]} 65. Ke4
{[%clk 00:00:15]} {[%emt 00:00:02]} Rb2 {[%clk 00:00:27]} 66. Rg5+ {[%clk
00:00:15]} {[%emt 00:00:01]} Kb4 {[%clk 00:00:28]} 67. Rg8 {[%clk 00:00:15]}
{[%emt 00:00:02]} a2 {[%clk 00:00:28]} {[%emt 00:00:02]} 68. Rb8+ {[%clk
00:00:15]} {[%emt 00:00:02]} Kc3 {[%clk 00:00:29]} 69. Rc8+ {[%clk 00:00:16]}
{[%emt 00:00:01]} Kd2 {[%clk 00:00:30]} 70. Rd8+ {[%clk 00:00:17]} Ke2 {[%clk
00:00:31]} {[%emt 00:00:01]} 71. Ra8 {[%clk 00:00:18]} Kd2 {[%clk 00:00:30]}
{[%emt 00:00:03]} 72. Rd8+ {[%clk 00:00:19]} {[%emt 00:00:01]} Kc1 {[%clk
00:00:31]} {[%emt 00:00:01]} 73. Rc8+ {[%clk 00:00:14]} {[%emt 00:00:07]} Kb1
{[%clk 00:00:29]} {[%emt 00:00:03]} 74. Kd3 {[%emt 00:00:14]} a1=Q {[%clk
00:00:28]} {[%emt 00:00:02]} 0-1

[Event "Blixt-SM 2021"]
[Site "Elite Hotel Marina Plaza, Kungstorget 6, Helsingborg, Sweden"]
[Date "2021.11.14"]
[Round "5.7"]
[White "Elsner, Yair"]
[Black "Frisk, Ellinor"]
[Result "0-1"]
[TimeControl "3 minutes + 2 seconds per move."]
[BlackTitle "WIM"]
[WhiteFideId "2838230"]
[BlackFideId "1708481"]
[WhiteElo "1629"]
[BlackElo "2142"]

1. e4 {[%clk 00:03:03]} c5 {[%clk 00:03:04]} {[%emt 00:00:01]} 2. Nc3 {[%clk
00:03:03]} {[%emt 00:00:02]} g6 {[%clk 00:03:04]} {[%emt 00:00:01]} 3. d4
{[%clk 00:03:04]} {[%emt 00:00:01]} cxd4 {[%clk 00:03:05]} {[%emt 00:00:02]} 4.
Qxd4 {[%clk 00:03:04]} Nf6 {[%clk 00:03:07]} 5. Nf3 {[%clk 00:03:04]} {[%emt
00:00:02]} Nc6 {[%clk 00:03:07]} {[%emt 00:00:02]} 6. Qa4 {[%clk 00:03:04]}
{[%emt 00:00:01]} d6 {[%clk 00:03:08]} {[%emt 00:00:02]} 7. Bf4 {[%clk
00:02:24]} {[%emt 00:00:42]} Bg7 {[%clk 00:03:06]} {[%emt 00:00:04]} 8. O-O-O
{[%clk 00:02:22]} {[%emt 00:00:04]} Bd7 {[%clk 00:02:46]} {[%emt 00:00:22]} 9.
Qb3 {[%clk 00:02:16]} {[%emt 00:00:08]} O-O {[%clk 00:02:11]} {[%emt 00:00:37]}
10. e5 {[%clk 00:02:06]} {[%emt 00:00:13]} dxe5 {[%clk 00:01:57]} {[%emt
00:00:16]} 11. Nxe5 {[%clk 00:02:05]} {[%emt 00:00:02]} Nxe5 {[%clk 00:01:54]}
{[%emt 00:00:05]} 12. Bxe5 {[%clk 00:02:05]} {[%emt 00:00:02]} Qc8 {[%clk
00:01:38]} {[%emt 00:00:19]} 13. Bc4 {[%clk 00:01:19]} {[%emt 00:00:48]} Bc6
{[%clk 00:01:16]} {[%emt 00:00:23]} 14. f3 {[%clk 00:01:15]} {[%emt 00:00:06]}
Qf5 {[%clk 00:00:46]} {[%emt 00:00:32]} 15. Rhe1 {[%clk 00:00:55]} {[%emt
00:00:22]} Rac8 {[%clk 00:00:28]} {[%emt 00:00:18]} 16. Kb1 {[%clk 00:00:26]}
{[%emt 00:00:33]} e6 {[%clk 00:00:16]} {[%emt 00:00:14]} 17. Bd3 {[%clk
00:00:20]} {[%emt 00:00:09]} Qh5 {[%clk 00:00:17]} 18. h3 {[%clk 00:00:15]}
{[%emt 00:00:07]} Nd5 {[%clk 00:00:16]} {[%emt 00:00:03]} 19. Bxg7 {[%clk
00:00:12]} {[%emt 00:00:05]} Kxg7 {[%clk 00:00:16]} {[%emt 00:00:02]} 20. Nxd5
{[%clk 00:00:10]} {[%emt 00:00:04]} Bxd5 {[%clk 00:00:17]} 21. Qa4 {[%clk
00:00:03]} {[%emt 00:00:08]} a6 {[%clk 00:00:17]} {[%emt 00:00:03]} 22. Qd4+
{[%clk 00:00:03]} {[%emt 00:00:02]} Kg8 {[%clk 00:00:16]} {[%emt 00:00:03]} 23.
Qg4 {[%clk 00:00:03]} {[%emt 00:00:02]} Qxg4 {[%clk 00:00:16]} {[%emt
00:00:03]} 24. hxg4 {[%clk 00:00:04]} Rc7 {[%clk 00:00:14]} {[%emt 00:00:04]}
25. Rh1 {[%clk 00:00:04]} {[%emt 00:00:02]} f5 {[%clk 00:00:10]} {[%emt
00:00:06]} 26. g5 {[%emt 00:00:04]} 0-1

[Event "Blixt-SM 2021"]
[Site "Elite Hotel Marina Plaza, Kungstorget 6, Helsingborg, Sweden"]
[Date "2021.11.14"]
[Round "7.5"]
[White "Tornberg, Carlos"]
[Black "Abedinov, Adnan"]
[Result "0-1"]
[TimeControl "3 minutes + 2 seconds per move."]
[WhiteFideId "1733478"]
[BlackFideId "1703544"]
[WhiteElo "2053"]
[BlackElo "2170"]

1. e4 {[%clk 00:03:02]} {[%emt 00:00:01]} c5 {[%clk 00:03:03]} {[%emt
00:00:01]} 2. c3 {[%clk 00:03:03]} Nf6 {[%clk 00:03:04]} {[%emt 00:00:02]} 3.
e5 {[%clk 00:03:04]} {[%emt 00:00:01]} Nd5 {[%clk 00:03:05]} 4. d4 {[%clk
00:03:05]} cxd4 {[%clk 00:03:06]} {[%emt 00:00:01]} 5. Nf3 {[%clk 00:03:07]}
{[%emt 00:00:01]} e6 {[%clk 00:03:06]} {[%emt 00:00:02]} 6. cxd4 {[%clk
00:03:07]} b6 {[%clk 00:03:07]} {[%emt 00:00:01]} 7. Bc4 {[%clk 00:03:08]}
{[%emt 00:00:01]} Bb7 {[%clk 00:03:08]} {[%emt 00:00:01]} 8. O-O {[%clk
00:03:08]} {[%emt 00:00:01]} d6 {[%clk 00:03:09]} 9. Qe2 {[%clk 00:03:06]}
{[%emt 00:00:05]} Nd7 {[%clk 00:03:07]} {[%emt 00:00:05]} 10. Nc3 {[%clk
00:03:06]} {[%emt 00:00:01]} Nxc3 {[%clk 00:03:00]} {[%emt 00:00:09]} 11. bxc3
{[%clk 00:03:06]} {[%emt 00:00:02]} Be7 {[%clk 00:02:54]} {[%emt 00:00:08]} 12.
Re1 {[%clk 00:03:06]} {[%emt 00:00:01]} dxe5 {[%clk 00:02:30]} {[%emt
00:00:26]} 13. Nxe5 {[%clk 00:02:46]} {[%emt 00:00:23]} Nxe5 {[%clk 00:02:30]}
{[%emt 00:00:02]} 14. Qxe5 {[%clk 00:02:46]} {[%emt 00:00:01]} O-O {[%clk
00:02:31]} {[%emt 00:00:02]} 15. Qg3 {[%clk 00:02:36]} {[%emt 00:00:12]} Rc8
{[%clk 00:02:15]} {[%emt 00:00:18]} 16. Bb3 {[%clk 00:02:12]} {[%emt 00:00:26]}
Kh8 {[%clk 00:02:05]} {[%emt 00:00:13]} 17. Bf4 {[%clk 00:02:09]} {[%emt
00:00:03]} Bf6 {[%clk 00:01:34]} {[%emt 00:00:34]} 18. Rad1 {[%clk 00:01:59]}
{[%emt 00:00:13]} Bd5 {[%clk 00:01:32]} {[%emt 00:00:04]} 19. Bc2 {[%clk
00:01:52]} {[%emt 00:00:08]} g6 {[%clk 00:01:12]} {[%emt 00:00:22]} 20. a4
{[%clk 00:01:45]} {[%emt 00:00:09]} Qd7 {[%clk 00:00:42]} {[%emt 00:00:32]} 21.
h4 {[%clk 00:01:39]} {[%emt 00:00:08]} h5 {[%clk 00:00:31]} {[%emt 00:00:14]}
22. Be5 {[%clk 00:01:30]} {[%emt 00:00:10]} Bxe5 {[%clk 00:00:27]} {[%emt
00:00:07]} 23. Qxe5+ {[%clk 00:01:16]} {[%emt 00:00:16]} Kh7 {[%clk 00:00:27]}
{[%emt 00:00:02]} 24. Qxh5+ {[%clk 00:01:16]} {[%emt 00:00:01]} Kg7 {[%clk
00:00:27]} {[%emt 00:00:03]} 25. Qe5+ {[%clk 00:01:16]} {[%emt 00:00:02]} f6
{[%clk 00:00:22]} {[%emt 00:00:07]} 26. Qg3 {[%clk 00:01:17]} Qf7 {[%clk
00:00:21]} {[%emt 00:00:04]} 27. Re3 {[%clk 00:00:59]} {[%emt 00:00:19]} Rh8
{[%clk 00:00:20]} {[%emt 00:00:03]} 28. Qf4 {[%clk 00:00:45]} {[%emt 00:00:15]}
Qc7 {[%clk 00:00:18]} {[%emt 00:00:05]} 29. Qg4 {[%clk 00:00:44]} {[%emt
00:00:03]} f5 {[%clk 00:00:12]} {[%emt 00:00:09]} 30. Qg5 {[%clk 00:00:40]}
{[%emt 00:00:05]} Qd8 {[%clk 00:00:13]} 31. Qg3 {[%clk 00:00:37]} {[%emt
00:00:07]} Qxh4 {[%clk 00:00:12]} {[%emt 00:00:02]} 32. Qe5+ {[%clk 00:00:30]}
{[%emt 00:00:09]} Kf7 {[%clk 00:00:14]} 33. Rh3 {[%clk 00:00:30]} {[%emt
00:00:02]} Qf6 {[%clk 00:00:15]} {[%emt 00:00:01]} 34. Rxh8 {[%clk 00:00:25]}
{[%emt 00:00:07]} Qxe5 {[%clk 00:00:14]} {[%emt 00:00:03]} 35. Rxc8 {[%emt
00:00:05]} Qe2 {[%clk 00:00:15]} 36. Rc7+ {[%clk 00:00:14]} {[%emt 00:00:10]}
Kf6 {[%clk 00:00:17]} {[%emt 00:00:01]} 37. Rc1 {[%clk 00:00:14]} {[%emt
00:00:02]} Qd2 {[%clk 00:00:17]} {[%emt 00:00:01]} 38. Ra1 {[%clk 00:00:12]}
{[%emt 00:00:04]} Qxc2 39. Rxa7 {[%emt 00:00:01]} Qe4 {[%clk 00:00:17]} 40. f3
{[%emt 00:00:02]} Qe3+ 41. Kh2 {[%clk 00:00:12]} {[%emt 00:00:02]} Qxc3 {[%clk
00:00:19]} {[%emt 00:00:02]} 42. Rb1 {[%clk 00:00:11]} {[%emt 00:00:02]} Qxd4
{[%clk 00:00:20]} {[%emt 00:00:02]} 43. Ra6 {[%clk 00:00:11]} {[%emt 00:00:02]}
Qf4+ {[%clk 00:00:20]} {[%emt 00:00:02]} 44. Kh1 {[%clk 00:00:07]} {[%emt
00:00:06]} Qh4+ {[%clk 00:00:21]} {[%emt 00:00:01]} 45. Kg1 {[%clk 00:00:08]}
Qd4+ {[%clk 00:00:22]} 46. Kh1 {[%clk 00:00:09]} {[%emt 00:00:01]} g5 {[%clk
00:00:17]} {[%emt 00:00:06]} 47. Raxb6 {[%clk 00:00:09]} {[%emt 00:00:02]} g4
{[%clk 00:00:18]} 48. R6b4 {[%clk 00:00:08]} {[%emt 00:00:02]} Qf2 {[%clk
00:00:18]} {[%emt 00:00:03]} 49. R4b2 {[%clk 00:00:08]} {[%emt 00:00:02]} Qh4+
{[%clk 00:00:19]} 50. Kg1 {[%clk 00:00:10]} {[%emt 00:00:02]} g3 {[%clk
00:00:20]} {[%emt 00:00:01]} 51. a5 {[%clk 00:00:09]} {[%emt 00:00:03]} Bc4
{[%clk 00:00:20]} {[%emt 00:00:02]} 0-1